Cogmind - Beta 14 @@@ ROGUE MODE // 2024.08.20 @ 00:20:53 Player: ducanus Result: Destroyed by D-53 Grenadier with Mini Grenade Launcher Performance ------------- Evolutions (0) 0 Regions Visited (2) 400 Robots Destroyed (8) 40 Value Destroyed (83) 83 Prototype IDs (0) 0 Alien Tech Used (0) 0 Bonus (0) 0 TOTAL SCORE: 523 Bonus ------- None Cogmind --------- Core Integrity 0/250 Matter 160/300 Energy 100/100 System Corruption 0% Temperature Cool (0) Movement Walking (190) Ox1 Location -10/Mines Parts ------- > --- POWER (1) -------- (None) > --- PROPULSION (2) --- Aluminum Leg > --- UTILITY (2) ------ Medium Storage Unit > --- WEAPON (2) ------- Grenade Launcher Makeshift Hammer > --- INVENTORY (10) --- Ion Engine Wheel Improved Terrain Scanner Core Shielding Light Armor Plating EM Pulse Gun Light Assault Rifle Light Assault Rifle Hammer Peak State ------------ > --- POWER ------------ Ion Engine > --- PROPULSION ------- Aluminum Leg Aluminum Leg > --- UTILITY ---------- Medium Storage Unit Seismic Detector > --- WEAPON ----------- Light Assault Rifle Makeshift Hammer > --- INVENTORY -------- Ion Engine Wheel Improved Terrain Scanner Core Shielding Light Armor Plating EM Pulse Gun Beam Cannon Light Assault Rifle Grenade Launcher Hammer [Rating: 11] Favorites ----------- Power Ion Engine Engine Ion Engine Propulsion Aluminum Leg Leg Aluminum Leg Utility Seismic Detector Device Seismic Detector Storage Small Storage Unit Weapon Light Assault Rifle Energy Gun EM Pulse Gun Energy Cannon Beam Cannon Ballistic Gun Light Assault Rifle Launcher Grenade Launcher Impact Weapon Makeshift Hammer Build | -11 -10 -10 ------- Run | Yrd Mat Min Slots Evolved . | . . . Power . | . . . Propulsion . | . . . Utility . | . . . Weapon . | . . . Parts Attached 14 | 8 3 3 Power 1 | 1 . . Engine 1 | 1 . . Core . | . . . Reactor . | . . . Propulsion 2 | 2 . . Treads . | . . . Leg 2 | 2 . . Wheel . | . . . Hover . | . . . Flight . | . . . Utility 3 | 2 1 . Device 1 | 1 . . Storage 2 | 1 1 . Processor . | . . . Hackware . | . . . Protection . | . . . Artifact . | . . . Weapon 8 | 3 2 3 Energy Gun 1 | 1 . . Energy Cannon 1 | . . 1 Ballistic Gun 2 | 2 . . Ballistic Cannon . | . . . Launcher 2 | . 1 1 Special Weapon . | . . . Impact Weapon 2 | . 1 1 Slashing Weapon . | . . . Piercing Weapon . | . . . Special Melee Weapon . | . . . Unidentified Prototypes . | . . . Parts Lost 4 | . . 4 Power 1 | . . 1 Propulsion 1 | . . 1 Utility 1 | . . 1 Weapon 1 | . . 1 Highest Loss Streak 4 | . . 4 To Critical Strikes . | . . . Average Slot Usage (%) 99 | . 100 98 Engine 13 | . 14 13 Leg 27 | . 28 27 Device 13 | . 14 13 Storage 14 | . 14 14 Ballistic Gun 22 | . 26 13 Impact Weapon 5 | . . 14 Peak Build Rating 11 | 7 8 11 Average Rating 8 | 5 7 9 On Entrance 5 | . 7 8 Naked Turns . | . . . Heaviest Build 20 | 13 20 20 Greatest Support 20 | 20 20 20 Greatest Overweight (x) 2 | 2 . 1 Average Overweight (x) . | . . . Largest Inventory Capacity 10 | 8 10 10 Average Capacity 8 | 7 8 10 Most Carried 10 | 4 9 10 Average Carried 7 | 2 7 9 Final Capacity 10 | 8 10 10 Final Carried 9 | 4 9 9 Class Distribution -------------------- 100% | Mutant Dominant Class ---------------- Mutant | -10/Materials Mutant | -10/Mines Resources | -11 -10 -10 ----------- Run | Yrd Mat Min Matter Collected 273 | 254 19 . Remotely . | . . . Salvage Created 157 | 61 40 56 Parts 16 | 5 8 3 Haulers Intercepted . | . . . Recyclers Shooed . | . . . Parts Field Recycled . | . . . Retrieved Matter . | . . . Parts Self-Destructed . | . . . Prevented . | . . . Kills | -11 -10 -10 ------- Run | Yrd Mat Min Combat Hostiles Destroyed 3 | . 3 . AOE 3 | . 3 . Classes Destroyed 4 | 1 2 1 Tunneler 3 | 3 . . Recycler 1 | . . 1 Operator 1 | . 1 . Swarmer 3 | . 3 . Best Kill Streak 3 | 2 3 1 Combat Bots Only 3 | . 3 . Max Kills in Single Turn 3 | 1 3 1 Gunslinging . | . . . Exploded 3 | . 3 . Melee . | . . . Uniques/NPCs Destroyed . | . . . Combat | -11 -10 -10 -------- Run | Yrd Mat Min Hostile Shots Fired 23 | . 3 20 Missed 1 | . . 1 Damage Taken 745 | . 30 715 Core 266 | . 17 249 Absorbed by Shields . | . . . Core Remaining (%) 100 | 100 . . Volleys Fired 28 | 11 9 8 Largest 2 | 2 2 1 Hottest 60 | 60 40 60 Shots Fired 43 | 19 16 8 Gun 33 | 19 14 . Cannon 3 | . . 3 Launcher 7 | . 2 5 Special . | . . . Kinetic 32 | 18 14 . Thermal 3 | . . 3 Explosive 7 | . 2 5 Electromagnetic 1 | 1 . . Robot Hit Streak 4 | 4 3 2 Robot Miss Streak 3 | 1 3 1 Penetration Max . | . . . Secondary Targets . | . . . Shots Hit Robots 23 | 14 6 3 Core Hits 26 | 5 7 14 Critical Kills . | . . . Critical Parts Destroyed . | . . . Critical Strikes . | . . . Melee Attacks 2 | . 1 1 Impact 2 | . 1 1 Slashing . | . . . Piercing . | . . . Sneak Attacks . | . . . Combat Hostiles . | . . . Follow-up Attacks . | . . . Damage Inflicted 487 | 129 207 151 Guns 156 | 121 35 . Cannons 34 | . . 34 Explosions 272 | . 155 117 Melee 17 | . 17 . Ramming 8 | 8 . . Kinetic 144 | 109 35 . Thermal 34 | . . 34 Explosive 272 | . 155 117 Electromagnetic 12 | 12 . . Impact 17 | . 17 . Slashing . | . . . Piercing . | . . . Highest Corruption . | . . . Average Corruption . | . . . Corruption Purged . | . . . Corruption Blocked . | . . . Overload Shots . | . . . Overflow Damage . | . . . Projectiles . | . . . Explosions . | . . . Melee . | . . . Knockbacks . | . . . Impact . | . . . Kinetic . | . . . Secondary . | . . . Self-Inflicted Damage 3 | . 3 . Shots 1 | . 1 . Rammed . | . . . Targets Rammed 3 | 3 . . Kicked 3 | 3 . . Crushed . | . . . Highest Temperature 45 | 20 . 45 Average Temperature 25 | 15 . 27 Received Heat Transfer 15 | . . 15 Siege Activations . | . . . Robots Corrupted . | . . . Combat Hostiles . | . . . Parts Fried . | . . . Impact Corruptions . | . . . Robots Melted . | . . . Combat Hostiles . | . . . Parts Melted . | . . . Heat Transferred 74 | . . 74 Parts Sabotaged . | . . . Parts Stolen . | . . . Parts Stripped . | . . . Power Chain Reactions . | . . . Alert | -11 -10 -10 ------- Run | Yrd Mat Min Peak Influence 151 | 15 151 9 Initial 9 | . 9 . Average 11 | 4 18 . Maximum Alert Level . | . . . Low Security (%) 100 | 100 100 100 Level 1 . | . . . Level 2 . | . . . Level 3 . | . . . Level 4 . | . . . Level 5 . | . . . High Security . | . . . Max Security . | . . . Squads Dispatched 3 | . 3 . Investigation 1 | . 1 . Extermination . | . . . Reinforcement 2 | . 2 . Assault . | . . . Garrison . | . . . Intercept . | . . . Searches Triggered . | . . . Construction Impeded . | . . . Haulers Reinforced . | . . . Active Scanning Responses . | . . . Cargo Convoy Interrupts . | . . . Stealth | -11 -10 -10 --------- Run | Yrd Mat Min Distress Signals . | . . . Communications Jammed . | . . . Distress Signals . | . . . Times Spotted 13 | . 9 4 Peak Tracking Total 4 | . 3 4 Tactical Retreats . | . . . Traps | -11 -10 -10 ------- Run | Yrd Mat Min Traps Triggered 1 | . 1 . Indirectly . | . . . Trap Hack Attempts . | . . . Triggered . | . . . Disarmed . | . . . Reprogrammed . | . . . Reused . | . . . Traps Extracted . | . . . Installed . | . . . Triggered . | . . . Machines | -11 -10 -10 ---------- Run | Yrd Mat Min Machines Disabled 1 | . 1 . Max in Single Turn 1 | . 1 . Machines Repaired . | . . . Machines Dismantled . | . . . Machines Sabotaged . | . . . Overloaded Fab Kills . | . . . Hacking | -11 -10 -10 --------- Run | Yrd Mat Min Machines Accessed 1 | . 1 . Terminals 1 | . 1 . Fabricators . | . . . Repair Stations . | . . . Recycling Units . | . . . Scanalyzers . | . . . Garrison Access . | . . . Total Hacks 3 | . 3 . Successful 1 | . 1 . Failed 2 | . 2 . Catastrophic . | . . . Database Lockouts . | . . . Manual . | . . . Terminals 3 | . 3 . Fabricators . | . . . Repair Stations . | . . . Recycling Units . | . . . Scanalyzers . | . . . Garrison Access . | . . . Terminal Hacks 1 | . 1 . Branch Access Points 1 | . 1 . Fabricator Hacks . | . . . Repair Station Hacks . | . . . Recycling Unit Hacks . | . . . Scanalyzer . | . . . Garrison Access Hacks . | . . . Unauthorized Hacks . | . . . Terminals . | . . . Fabricators . | . . . Repair Stations . | . . . Recycling Units . | . . . Scanalyzers . | . . . Garrison Access . | . . . Data Cores Recovered . | . . . Used . | . . . Hacking Detections 1 | . 1 . Full Trace Events . | . . . Feedback Events . | . . . Feedback Blocked . | . . . Robot Schematics Acquired . | . . . Robots Built . | . . . Authchips . | . . . Time . | . . . Total Robot Build Rating . | . . . Part Schematics Acquired . | . . . Parts Built . | . . . Authchips . | . . . Time . | . . . Total Part Build Rating . | . . . Parts Repaired . | . . . Time . | . . . Parts Recycled . | . . . Recycled Matter . | . . . Retrieved Matter . | . . . Retrieved Components . | . . . Parts Scanalyzed . | . . . Part Schematics Acquired . | . . . Parts Damaged . | . . . Bothacking | -11 -10 -10 ------------ Run | Yrd Mat Min Used RIF Installer . | . . . Robots Hacked . | . . . Non-combat . | . . . Combat . | . . . Robot Hacks Applied . | . . . Relay Couplers Released . | . . . Fabnet Peak Effective % . | . . . Robots Rewired . | . . . Allies Hacked . | . . . Hacks Repelled . | . . . Allies | -11 -10 -10 -------- Run | Yrd Mat Min Total Allies 2 | . . 2 Largest Group 2 | . . 2 Highest-Rated Group 54 | . . 54 Highest-Rated Ally 31 | . . 31 Total Orders . | . . . Ally Attacks 1 | . . 1 Total Damage . | . . . Kills . | . . . Allies Corrupted . | . . . Allies Melted . | . . . Intel | -11 -10 -10 ------- Run | Yrd Mat Min Robot Analysis Total . | . . . Derelict Logs Recovered 2 | . . 2 Drone Launches . | . . . Drone Recoveries . | . . . Exploration | -11 -10 -10 ------------- Run | Yrd Mat Min Turns Passed 1399 | 131 840 428 Spaces Moved 755 | 76 373 306 Core 14 | 14 . . Treads . | . . . Legs 741 | 62 373 306 Wheels . | . . . Hover . | . . . Flight . | . . . Fastest Speed 50 | 50 120 120 Average Speed 119 | 112 120 120 Slowest Speed 190 | 150 120 190 Overloaded Moves . | . . . Propulsion Burnouts . | . . . Robots Hopped . | . . . Cave-ins Triggered . | . . . Exploration Rate (%) 35 | 6 46 55 Regions Visited 2 Branch Regions 1 Pre-discovered Areas 2 | . . 2 Known Exits Taken 1 | . 1 . Unknown Exits Taken 1 | 1 . . Scrap Searched . | . . . Spaces Dug 1 | . . 1 Terrain Destroyed 23 | . 9 14 Melee 1 | . . 1 Projectile . | . . . AOE 22 | . 9 13 Terrain Rammed . | . . . Walls Destroyed . | . . . Machines Disabled . | . . . Actions | -11 -10 -10 --------- Run | Yrd Mat Min Total 1208 | 101 750 357 Wait 396 | . 357 39 Move 753 | 75 372 306 Hop . | . . . Pick Up 10 | 4 6 . Fast Attach 7 | 7 . . Attach 1 | . . 1 Detach . | . . . Swap 6 | 1 3 2 Drop 2 | . 2 . Fire 28 | 11 9 8 Melee 2 | . 1 1 Ram . | . . . Kick 3 | 3 . . Crush . | . . . Escape Stasis . | . . . Rewire . | . . . Trap . | . . . Miscellaneous . | . . . Route ------- -11/Scrapyard -10/Materials (discovered 2 exits: *Min x2) -10/Mines (discovered 1 exit: [*Mat]) History --------- Turn | Location | Event 24 | -11/Scrapyard | Discovered new exit (range 15) 132 | -11/Scrapyard | Entered Materials 316 | -10/Materials | Build established: Mutant 666 | -10/Materials | Discovered new exit (range 14) 684 | -10/Materials | Identified exit to Mines 972 | -10/Materials | Entered Mines 1098 | -10/Mines | Learned location of Zion (-7) 1109 | -10/Mines | A weapon hastily lodged in a ceiling crevice suddenly fell to the ground 1118 | -10/Mines | Assembled infested the area 1229 | -10/Mines | Discovered new exit (range 14) 1389 | -10/Mines | Core integrity fell below 50% 1397 | -10/Mines | Core integrity fell below 20% 1400 | -10/Mines | Destroyed by D-53 Grenadier with Mini Grenade Launcher Last Messages --------------- under some rubble with a note attached: "Who needs nails when you have Unaware?" 01118_ ALERT: Infestation in the mines, dispatching Demolisher response squad. 01121_ Acquired derelict log, extracted data. World map updated: -8/Materials. 01229_ EXIT=FOUND 01289_ K-01 Serf collects debris. 01381_ Ion Engine destroyed. 01383_ The unstable cave ceiling collapses. 01386_ G-34 Mercenary destroyed. 01387_ Beam Cannon destroyed. 01387_ Seismic Detector destroyed. 01388_ The unstable cave ceiling collapses. 01388_ G-47 Trooper destroyed. 01389_ R-06 Scavenger destroyed. 01390_ The unstable cave ceiling collapses. 01390_ Core Extractor disabled. 01392_ Aluminum Leg destroyed. 01394_ The unstable cave ceiling collapses. Map ----- +----------------------------------------------------+ | ?# #?####???# ## ##????????????????? | | ?# #???????## ##???????????????? | | ?# #???????# ### #???????????????? | | ?# #???????# ##?## ##?????????####?? | | ?# #???????## ##???## #????????## ##? | | ? ????????## ##????# #????????# #? | | ? ????????## ###?## #????????# #? | | # ????????# ### #????????# #? | | ????????# #???????## #?? | | ????????## ##??????## ##?? | | ?????????## #???????# ##??? | | ??????????## #??????# #???? | | #???????????## ####??## ##??? | | ##????????????## ##??# #??? | | ???????????????# ##?# #??? | | ???????????????# # #?# ##?? | | ???????????????# ## %= ### #?? | | ???????????????# ### d ! #?? | | ???????????????## ### d #?? | | ????????????????###### # ### #?? | | ? #???????????????????## # #???## #?? | | ?????????????????????## ##?????## ##? | | ?????????????????????# #??????## #? | | ??????????????????#### #???????# #? | | ??????????????????# "" #??????## #? | | ??????????????????# "" @ # ##??????# #? | | ?????????????? r """ # #??????# ##? | | ???????????????# ## #?????# #?? | | ??????????????????# # ###?????# ##?? | | ??????????????????# #######???????## ##??? | | ??????????????????#########??????????????####???? | | ????????????????????????????????????????????????? | | ????????????????????????????????????????????????? | | ????????????????????????????????????????????????? | | ????????????????????????????????????????????????? | | ????????????????????????????????????????????????? | | ????????????????????????????????????????????????? | | ????????????????????????????????????????????????? | | ????????????????????????????????????????????????? | | ????????????????????????????????????????????????? | | ????????????????????????????????????????????????? | | ????????????????????????????????????????????????? | | ????????????????????????????????????????????????? | | ????????????????????????????????????????????????? | | ????????????????????????????????????????????????? | | ????????????????????????????????????????????????? | | ????????????????????????????????????????????????? | | ????????????????????????????????????????????????? | | ????????????????????????????????????????????????? | | ????????????????????????????????????????????????? | +----------------------------------------------------+ Best States ------------- Heat Dissipation 25 Energy Generation 10 Energy Capacity 250 Matter Stores 273 Matter Capacity 300 Sight Range 16 Terrain Scan Density 10 Evasion (%) 55 Item Schematics ----------------- None Robot Schematics ------------------ None Fabricated ------------ Nothing Alien Tech Used ----------------- None Achievements -------------- None Challenges ------------ None Game ------ Seed WardroneNullPendant Manual? 0 Play Time 00:16:52 Cumulative 14.7 hours Start 2024.08.20 @ 00:01:56 End 2024.08.20 @ 00:20:53 Sessions 1 Manual Loads 0 Difficulty Rogue Special Mode None Game No. 9 Rogue 9 Adventurer 0 Explorer 0 Win Type - Total 1 Types 1/0/0/0/0/0/0/0/0 Lore% 12 Gallery% 27 Achievement% 23 Wizard Run 0 Options --------- Layout 1 ASCII 0 Keyboard 1 Movement Numpad Keybinds 0 Fullscreen 1 Font 24/Smallcaps Map View 50x35 Zoom Use 0% Tactical HUD 1 Map Filters NONE Filters NONE Steam 1 RUN: bd04d2d6-7bb8-44ce-9a6a-e4bbc8692ece